Cogmind - Beta 14 @@@ ROGUE MODE // 2024.09.13 @ 18:20:38 Player: Null_error Result: Destroyed by 01-MTF via exploding Compression Vault Performance ------------- Evolutions (1) 500 Regions Visited (3) 600 Robots Destroyed (40) 200 Value Destroyed (1128) 1128 Prototype IDs (7) 140 Alien Tech Used (0) 0 Bonus (-39) -39 TOTAL SCORE: 2529 Bonus ------- Friendly Fire -39 Cogmind --------- Core Integrity 0/400 Matter 300/300 Energy 100/100 System Corruption 5% Temperature Warm (140) Movement Core (200) Ox3 Location -9/Storage Parts ------- > --- POWER (1) -------- (None) > --- PROPULSION (2) --- (None) > --- UTILITY (4) ------ Medium Storage Unit Hacking Suite > --- WEAPON (2) ------- (None) > --- INVENTORY (10) --- Improved Ion Engine Structural Scanner Sensor Array Propulsion Shielding Drone Bay (2/2) Drone Bay (2/2) Datajack Peak State ------------ > --- POWER ------------ Heavy Ion Engine > --- PROPULSION ------- Aluminum Leg Improved Flight Unit > --- UTILITY ---------- Medium Storage Unit Hacking Suite Drone Bay Drone Bay > --- WEAPON ----------- Improved EM Shotgun Advanced Beam Cannon > --- INVENTORY -------- Ion Engine Improved Ion Engine Aluminum Leg Structural Scanner Sensor Array Propulsion Shielding Drone Bay Drone Bay Particle Gun Datajack [Rating: 29] Favorites ----------- Power Improved Ion Engine Engine Improved Ion Engine Propulsion Aluminum Leg Treads Light Treads Leg Aluminum Leg Flight Unit Improved Flight Unit Utility Hacking Suite Device Drone Bay Storage Small Storage Unit Hackware Hacking Suite Protection Light Armor Plating Weapon Improved Medium Laser Energy Gun Improved Medium Laser Energy Cannon Advanced Beam Cannon Ballistic Gun Improved Assault Rifle Special Melee Weapon Datajack Build | -11 -10 -9 -9 ------- Run | Yrd Mat Mat Sto Slots Evolved 2 | . . 2 . Power . | . . . . Propulsion . | . . . . Utility 2 | . . 2 . Weapon . | . . . . Parts Attached 51 | 9 12 18 12 Power 8 | 2 3 1 2 Engine 8 | 2 3 1 2 Core . | . . . . Reactor . | . . . . Propulsion 13 | 2 2 6 3 Treads 2 | 2 . . . Leg 10 | . 2 6 2 Wheel . | . . . . Hover . | . . . . Flight 1 | . . . 1 Utility 13 | 3 1 7 2 Device 9 | 2 . 5 2 Storage 2 | 1 . 1 . Processor . | . . . . Hackware 1 | . 1 . . Protection 1 | . . 1 . Artifact . | . . . . Weapon 17 | 2 6 4 5 Energy Gun 13 | 2 5 3 3 Energy Cannon 1 | . . . 1 Ballistic Gun 2 | . . 1 1 Ballistic Cannon . | . . . . Launcher . | . . . . Special Weapon . | . . . . Impact Weapon . | . . . . Slashing Weapon . | . . . . Piercing Weapon . | . . . . Special Melee Weapon 1 | . 1 . . Unidentified Prototypes 7 | . 1 2 4 Parts Lost 16 | . 3 3 10 Power 2 | . . . 2 Propulsion 6 | . 2 1 3 Utility 3 | . . 1 2 Weapon 5 | . 1 1 3 Highest Loss Streak 9 | . 2 2 9 To Critical Strikes . | . . . . Average Slot Usage (%) 97 | . 97 98 95 Engine 11 | . 14 11 9 Treads 9 | . 25 . . Leg 14 | . . 21 21 Device 13 | . 6 15 20 Storage 12 | . 14 11 11 Hackware 9 | . 7 11 11 Protection 2 | . . 5 . Energy Gun 17 | . 23 15 11 Energy Cannon 1 | . . . 4 Ballistic Gun 4 | . . 6 5 Special Melee Weapon 1 | . 3 . . Peak Build Rating 29 | 7 15 20 29 Average Rating 16 | 5 9 17 25 On Entrance 10 | . 7 15 19 Naked Turns . | . . . . Heaviest Build 37 | 14 18 26 37 Greatest Support 40 | 40 40 20 20 Greatest Overweight (x) 5 | 1 5 1 2 Average Overweight (x) . | . . . 1 Largest Inventory Capacity 10 | 8 8 10 10 Average Capacity 8 | 7 8 8 10 Most Carried 10 | 2 8 8 10 Average Carried 7 | 1 5 7 9 Final Capacity 10 | 8 8 10 10 Final Carried 8 | 2 8 8 7 Class Distribution -------------------- 56% | Scavenger-Mutant 43% | Mutant Dominant Class ---------------- Mutant | -10/Materials Scavenger-Mutant | -9/Materials Scavenger-Mutant | -9/Storage Resources | -11 -10 -9 -9 ----------- Run | Yrd Mat Mat Sto Matter Collected 822 | 290 164 241 127 Remotely 79 | 79 . . . Salvage Created 1750 | 116 451 752 431 Parts 96 | 5 25 45 21 Haulers Intercepted 3 | . 1 1 1 Recyclers Shooed 3 | . . . 3 Parts Field Recycled . | . . . . Retrieved Matter . | . . . . Parts Self-Destructed . | . . . . Prevented . | . . . . Kills | -11 -10 -9 -9 ------- Run | Yrd Mat Mat Sto Combat Hostiles Destroyed 28 | . 8 16 4 Guns 25 | . 8 15 2 Cannons 1 | . . . 1 AOE 1 | . . . 1 Classes Destroyed 10 | 2 5 3 . Builder 1 | . 1 . . Tunneler 1 | 1 . . . Hauler 3 | . 1 1 1 Recycler 4 | 1 . 1 2 Operator 2 | . 1 . 1 Watcher 1 | . 1 . . Swarmer 4 | . . 4 . Grunt 15 | . 8 6 1 Brawler 1 | . . 1 . Sentry 8 | . . 5 3 Best Kill Streak 6 | 1 2 6 2 Combat Bots Only 6 | . 2 6 1 Max Kills in Single Turn 2 | 1 2 1 1 Gunslinging . | . . . . Exploded 1 | . . . 1 Melee . | . . . . Uniques/NPCs Destroyed . | . . . . Combat | -11 -10 -9 -9 -------- Run | Yrd Mat Mat Sto Hostile Shots Fired 234 | . 71 119 44 Missed 60 | . 17 32 11 Damage Taken 2814 | . 650 1097 1067 Core 533 | . 100 214 219 Absorbed by Shields . | . . . . Core Remaining (%) 80 | 100 60 . . Volleys Fired 137 | 5 49 51 32 Largest 2 | 2 2 2 2 Hottest 133 | 90 115 112 133 Shots Fired 256 | 10 86 100 60 Gun 242 | 10 86 100 46 Cannon 14 | . . . 14 Launcher . | . . . . Special . | . . . . Kinetic 43 | . . 30 13 Thermal 193 | 10 86 70 27 Explosive . | . . . . Electromagnetic 20 | . . . 20 Robot Hit Streak 12 | 3 11 12 10 Robot Miss Streak 7 | 2 3 7 3 Penetration Max . | . . . . Secondary Targets 4 | . 1 3 . Max Gunslinging Chain 1 | . 1 1 . Shots Hit Robots 155 | 5 54 59 37 Core Hits 64 | 3 22 25 14 Critical Kills . | . . . . Critical Parts Destroyed . | . . . . Critical Strikes 9 | . 6 3 . Burn 9 | . 6 3 . Melee Attacks 2 | . 2 . . Impact . | . . . . Slashing . | . . . . Piercing . | . . . . Sneak Attacks 2 | . 2 . . Combat Hostiles . | . . . . Follow-up Attacks . | . . . . Damage Inflicted 2527 | 54 764 1066 643 Guns 2195 | 54 759 1066 316 Cannons 157 | . . . 157 Explosions 158 | . . . 158 Melee . | . . . . Ramming 17 | . 5 . 12 Kinetic 365 | . . 296 69 Thermal 2020 | 54 759 770 437 Explosive . | . . . . Electromagnetic 125 | . . . 125 Impact . | . . . . Slashing . | . . . . Piercing . | . . . . Highest Corruption 4 | . 3 . 4 Average Corruption 2 | . 3 . 2 Corruption Purged . | . . . . Corruption Blocked . | . . . . Effects 7 | . 7 . . Message Errors 2 | . 2 . . Matter Fused 2 | . 2 . . Heat Flow Errors 1 | . 1 . . Energy Discharges 1 | . 1 . . Data Loss (minor) 1 | . 1 . . Overload Shots . | . . . . Overflow Damage 50 | . . . 50 Projectiles . | . . . . Explosions 50 | . . . 50 Melee . | . . . . Knockbacks . | . . . . Impact . | . . . . Kinetic . | . . . . Secondary . | . . . . Self-Inflicted Damage 104 | . . . 104 Shots 3 | . . . 3 Rammed 2 | . 2 . . Targets Rammed 5 | . 2 . 3 Kicked 3 | . . . 3 Crushed . | . . . . Highest Temperature 355 | 90 355 174 252 Average Temperature 82 | 41 115 53 52 Received Heat Transfer 858 | . 363 450 45 Effects 3 | . 3 . . Energy Bleed 2 | . 2 . . Matter Decay 1 | . 1 . . Siege Activations . | . . . . Robots Corrupted . | . . . . Combat Hostiles . | . . . . Parts Fried . | . . . . Impact Corruptions . | . . . . Robots Melted 1 | . . 1 . Combat Hostiles 1 | . . 1 . Parts Melted 12 | . 6 6 . Heat Transferred 5239 | 149 2324 1813 953 Parts Sabotaged . | . . . . Parts Stolen . | . . . . Parts Stripped . | . . . . Power Chain Reactions 4 | . . . 4 Alert | -11 -10 -9 -9 ------- Run | Yrd Mat Mat Sto Peak Influence 358 | 10 153 358 335 Initial 150 | . 6 42 150 Average 158 | 4 77 226 197 Maximum Alert Level 1 | . . 1 1 Low Security (%) 65 | 100 100 36 54 Level 1 34 | . . 63 45 Level 2 . | . . . . Level 3 . | . . . . Level 4 . | . . . . Level 5 . | . . . . High Security . | . . . . Max Security . | . . . . Squads Dispatched 5 | . 2 2 1 Investigation 1 | . . 1 . Extermination . | . . . . Reinforcement 4 | . 2 1 1 Assault . | . . . . Garrison . | . . . . Intercept . | . . . . Searches Triggered . | . . . . Construction Impeded . | . . . . Haulers Reinforced . | . . . . Active Scanning Responses . | . . . . Cargo Convoy Interrupts . | . . . . Stealth | -11 -10 -9 -9 --------- Run | Yrd Mat Mat Sto Distress Signals 6 | . 1 2 3 Communications Jammed . | . . . . Distress Signals . | . . . . Times Spotted 53 | . 18 28 7 Peak Tracking Total 8 | . 4 8 2 Tactical Retreats 1 | . . 1 . Traps | -11 -10 -9 -9 ------- Run | Yrd Mat Mat Sto Traps Triggered 3 | . 1 . 2 Indirectly . | . . . . Trap Hack Attempts . | . . . . Triggered . | . . . . Disarmed . | . . . . Reprogrammed . | . . . . Reused . | . . . . Traps Extracted . | . . . . Installed . | . . . . Triggered . | . . . . Machines | -11 -10 -9 -9 ---------- Run | Yrd Mat Mat Sto Machines Disabled 4 | . . 1 3 Max in Single Turn 1 | . . 1 1 Machines Repaired . | . . . . Machines Dismantled . | . . . . Machines Sabotaged . | . . . . Overloaded Fab Kills . | . . . . Hacking | -11 -10 -9 -9 --------- Run | Yrd Mat Mat Sto Machines Accessed 3 | . 1 1 1 Terminals 3 | . 1 1 1 Fabricators . | . . . . Repair Stations . | . . . . Recycling Units . | . . . . Scanalyzers . | . . . . Garrison Access . | . . . . Total Hacks 5 | . 1 3 1 Successful 3 | . 1 1 1 Failed 2 | . . 2 . Catastrophic . | . . . . Database Lockouts . | . . . . Manual 3 | . 1 2 . Terminals 5 | . 1 3 1 Fabricators . | . . . . Repair Stations . | . . . . Recycling Units . | . . . . Scanalyzers . | . . . . Garrison Access . | . . . . Terminal Hacks 2 | . . 1 1 Record 1 | . . 1 . Open Door 1 | . . . 1 Fabricator Hacks . | . . . . Repair Station Hacks . | . . . . Recycling Unit Hacks . | . . . . Scanalyzer . | . . . . Garrison Access Hacks . | . . . . Unauthorized Hacks 1 | . 1 . . Terminals 1 | . 1 . . Assimilate 1 | . 1 . . Fabricators . | . . . . Repair Stations . | . . . . Recycling Units . | . . . . Scanalyzers . | . . . . Garrison Access . | . . . . Data Cores Recovered . | . . . . Used . | . . . . Hacking Detections 2 | . 1 1 . Full Trace Events 1 | . . 1 . Feedback Events . | . . . . Feedback Blocked . | . . . . Robot Schematics Acquired . | . . . . Robots Built . | . . . . Authchips . | . . . . Time . | . . . . Total Robot Build Rating . | . . . . Part Schematics Acquired . | . . . . Parts Built . | . . . . Authchips . | . . . . Time . | . . . . Total Part Build Rating . | . . . . Parts Repaired . | . . . . Time . | . . . . Parts Recycled . | . . . . Recycled Matter . | . . . . Retrieved Matter . | . . . . Retrieved Components . | . . . . Parts Scanalyzed . | . . . . Part Schematics Acquired . | . . . . Parts Damaged . | . . . . Bothacking | -11 -10 -9 -9 ------------ Run | Yrd Mat Mat Sto Used RIF Installer . | . . . . Robots Hacked 1 | . 1 . . Non-combat 1 | . 1 . . Combat . | . . . . Robot Hacks Applied 1 | . 1 . . parse_system 1 | . 1 . . Relay Couplers Released . | . . . . Fabnet Peak Effective % . | . . . . Robots Rewired . | . . . . Allies Hacked . | . . . . Hacks Repelled . | . . . . Allies | -11 -10 -9 -9 -------- Run | Yrd Mat Mat Sto Total Allies . | . . . . Largest Group . | . . . . Highest-Rated Group . | . . . . Highest-Rated Ally . | . . . . Total Orders 1 | . . . 1 EXPLORE 1 | . . . 1 Ally Attacks . | . . . . Total Damage . | . . . . Kills . | . . . . Allies Corrupted . | . . . . Allies Melted . | . . . . Intel | -11 -10 -9 -9 ------- Run | Yrd Mat Mat Sto Robot Analysis Total . | . . . . Derelict Logs Recovered . | . . . . Drone Launches 6 | . . . 6 Drone Recoveries 4 | . . . 4 Exploration | -11 -10 -9 -9 ------------- Run | Yrd Mat Mat Sto Turns Passed 2002 | 87 686 716 513 Spaces Moved 901 | 41 302 352 206 Core 15 | 7 8 . . Treads 315 | 34 281 . . Legs 571 | . 13 352 206 Wheels . | . . . . Hover . | . . . . Flight . | . . . . Fastest Speed 50 | 50 120 120 190 Average Speed 163 | 142 162 151 190 Slowest Speed 300 | 160 300 190 260 Overloaded Moves . | . . . . Propulsion Burnouts . | . . . . Robots Hopped . | . . . . Cave-ins Triggered . | . . . . Exploration Rate (%) 29 | 5 40 25 46 Regions Visited 3 Branch Regions 1 Pre-discovered Areas . | . . . . Known Exits Taken . | . . . . Unknown Exits Taken 3 | 1 1 1 . Scrap Searched . | . . . . Spaces Dug . | . . . . Terrain Destroyed 9 | . . . 9 Melee . | . . . . Projectile . | . . . . AOE 9 | . . . 9 Terrain Rammed . | . . . . Walls Destroyed . | . . . . Machines Disabled . | . . . . Actions | -11 -10 -9 -9 --------- Run | Yrd Mat Mat Sto Total 1163 | 55 409 437 262 Wait 38 | . 27 6 5 Move 898 | 40 301 351 206 Hop . | . . . . Pick Up 14 | 1 9 1 3 Fast Attach 13 | 7 3 2 1 Attach 5 | . . 2 3 Detach . | . . . . Swap 33 | 2 9 14 8 Drop 18 | . 7 10 1 Fire 137 | 5 49 51 32 Melee 2 | . 2 . . Ram . | . . . . Kick 3 | . . . 3 Crush 2 | . 2 . . Escape Stasis . | . . . . Rewire . | . . . . Trap . | . . . . Miscellaneous . | . . . . Route ------- -11/Scrapyard -10/Materials (discovered 3 exits: *Mat x2 / [*Min]) -9/Materials (discovered 2 exits: *Sto x2) -9/Storage (discovered 1 exit: [*Rec]) History --------- Turn | Location | Event 24 | -11/Scrapyard | Discovered new exit (range 15) 88 | -11/Scrapyard | Entered Materials 358 | -10/Materials | Build established: Mutant 507 | -10/Materials | Discovered new exit (range 12) 676 | -10/Materials | Discovered new exit (range 14) 678 | -10/Materials | Discovered new exit (range 15) 774 | -10/Materials | Entered another Materials area 774 | -9/Materials | Evolved 2 slots: Utility x2 869 | -9/Materials | Discovered new exit (range 14) 1094 | -9/Materials | Build established: Scavenger-Mutant 1166 | -9/Materials | Discovered new exit (range 4) 1487 | -9/Materials | Core integrity fell below 50% 1490 | -9/Materials | Entered Storage 1920 | -9/Storage | Met 01-MTF 1961 | -9/Storage | Discovered new exit (range 5) 1997 | -9/Storage | Core integrity fell below 20% 2003 | -9/Storage | Destroyed by 01-MTF via exploding Compression Vault Last Messages --------------- Reactor. 01970_ Door Terminal disabled. 01970_ Drone Bay destroyed. 01970_ Destroyed Drone Bay. 01976_ Aluminum Leg destroyed. 01978_ Imp. EM Shotgun destroyed. 01980_ U-05 Engineer builds a Wall. 01982_ Drone Bay destroyed. 01984_ U-05 Engineer lays Concrete. 01987_ U-05 Engineer builds a Wall. 01991_ U-05 Engineer lays Concrete. 01998_ Aluminum Leg destroyed. 01999_ U-05 Engineer lays Concrete. 02000_ Particle Gun destroyed. 02001_ U-05 Engineer builds a Wall. 02003_ Compression Vault explodes. 02003_ Adv. Beam Cannon destroyed. 02003_ Ion Engine destroyed. 02003_ Aluminum Leg destroyed. 02003_ Compression Vault explodes. Map ----- +----------------------------------------------------+ | ???????????????????????????????????? | | ???????????????????????????????????? | | ???????????????????????????????????? | | ??????????????????????????????????# | | ??????????????????????????????##### | | ??????????????????????????????# # | | ??????????????????????????????# # | | ??????????????????????#####???# # | | ??????????????????????#]]]#???# # | | ??????????????????????#]]]#???# # | | ??????????????????????#" "##??# # | | ?????????????????????## T#??# ## | | ?????????????????#### ###+##### | | ?????????????????# !## | | ?????????????????# ## #### | | ?????????????????# " "## #??###### | | ?????????????????# "## #???????? | | ?????????????????# ! "## #???????? | | ?????#############== "## #???????? | | ?????# #"=% ## #???????? | | ??????#Y #"=== ## #?####### | | ??????# ## = ## #?# ? | | ??????# ## ##! ### ?? | | ??????# #" #+##%! ## """" | | ??????# # * ## " =* | | ??????# @ # T ## " | | ??????# + ##### ## "" | | ??????### # #???## ### %[ " | | ???????####p ## #????# #?# ! | | ???????# #????# #?# | | ???????# < u #????# #?###+##+ | | ???????# # ###+####??# #???# | | ???????########?# ##?## #???# | | ????????????????# T#??# #???# | | ????????????????##" "###?# #???# | | ????????????????#! #?# #?### | | ????????????????# ]]#?# ##### ! | | ????????????????#]] ] #?# % | | ????????????????#] ] ]#?# ####+## | | ????????????????########?# # #% | | ?????????????????????????# + "" # | | ?????????????????????????#### Y" ## | | ????????????????????????????# "" # | | ????????????????????????????# ## | | ????????????????????????????# #? | | ????????????????????????????#######? | | | | | | | | | +----------------------------------------------------+ Best States ------------- Heat Dissipation 42 Energy Generation 14 Energy Capacity 280 Matter Stores 300 Matter Capacity 300 Sight Range 16 Terrain Scan Density 10 Armor Coverage 150 Evasion (%) 55 Recoil Reduction 2 Offensive Hacking 10 Item Schematics ----------------- None Robot Schematics ------------------ None Fabricated ------------ Nothing Alien Tech Used ----------------- None Achievements -------------- None Challenges ------------ None Game ------ Seed ColdDispersionPower Manual? 0 Play Time 00:19:44 Cumulative 56.9 hours Start 2024.09.13 @ 17:37:49 End 2024.09.13 @ 18:20:38 Sessions 6 Manual Loads 0 Difficulty Rogue Special Mode None Game No. 59 Rogue 59 Adventurer 0 Explorer 0 Win Type - Total 1 Types 1/0/0/0/0/0/0/0/0 Lore% 20 Gallery% 45 Achievement% 30 Wizard Run 0 Options --------- Layout 2 ASCII 0 Keyboard 1 Movement Numpad Keybinds 0 Fullscreen 2 Font 24/Smallcaps Map View 50x44 Zoom Use 0% Tactical HUD 1 Map Filters NONE Filters LOW_CONTRAST(5,10,15) Steam 1 RUN: 595ab0b3-dab3-45bc-80a3-950dad9eeb4b